[Event "*** Titled Tuesday Blitz"]
[Site "Chess.com"]
[Date "2018.09.04"]
[Round "3"]
[White "ViIIagra"]
[Black "metra93"]
[Result "0-1"]
[WhiteElo "2778"]
[BlackElo "2477"]
[TimeControl "180+2"]
[EndTime "14:11:20 PDT"]
[Termination "metra93 won by resignation"]

1. e4 {[%clk 0:02:57.2]} 1... e6 {[%clk 0:03:00.8]} 2. d4 {[%clk 0:02:57.9]}
2... d5 {[%clk 0:03:01.9]} 3. Nc3 {[%clk 0:02:59.4]} 3... Bb4 {[%clk 0:03:02.4]}
4. e5 {[%clk 0:02:58.1]} 4... c5 {[%clk 0:03:03.4]} 5. a3 {[%clk 0:02:59.6]}
5... Bxc3+ {[%clk 0:03:04.6]} 6. bxc3 {[%clk 0:03:01.2]} 6... Qc7 {[%clk
0:03:06.5]} 7. Qg4 {[%clk 0:03:01.3]} 7... f5 {[%clk 0:03:04.5]} 8. Qg3 {[%clk
0:02:58]} 8... Ne7 {[%clk 0:03:05.6]} 9. Bd2 {[%clk 0:02:48.9]} 9... O-O {[%clk
0:03:05]} 10. h4 {[%clk 0:02:48.1]} 10... b6 {[%clk 0:03:05]} 11. h5 {[%clk
0:02:46.6]} 11... Ba6 {[%clk 0:03:06]} 12. Ne2 {[%clk 0:02:46.4]} 12... Qd7
{[%clk 0:03:05.5]} 13. a4 {[%clk 0:02:44.1]} 13... Nbc6 {[%clk 0:03:04.4]} 14.
Rh4 {[%clk 0:02:42.1]} 14... Rac8 {[%clk 0:03:04.4]} 15. Bg5 {[%clk 0:02:05.6]}
15... Bxe2 {[%clk 0:02:50.7]} 16. Bxe2 {[%clk 0:02:03.6]} 16... f4 {[%clk
0:02:52.1]} 17. Rxf4 {[%clk 0:01:59.2]} 17... Nf5 {[%clk 0:02:53]} 18. Qg4
{[%clk 0:01:51.5]} 18... cxd4 {[%clk 0:02:50.5]} 19. cxd4 {[%clk 0:01:53.4]}
19... Nb4 {[%clk 0:02:48.1]} 20. Bd3 {[%clk 0:01:25.9]} 20... Nxc2+ {[%clk
0:02:45.9]} 21. Bxc2 {[%clk 0:01:26.6]} 21... Rxc2 {[%clk 0:02:47.8]} 22. Qd1
{[%clk 0:01:09.8]} 22... Qc6 {[%clk 0:02:13.7]} 23. Rf3 {[%clk 0:00:57.9]} 23...
h6 {[%clk 0:02:00.5]} 24. Bc1 {[%clk 0:00:50.2]} 24... Nh4 {[%clk 0:01:44.7]}
25. Rxf8+ {[%clk 0:00:33]} 25... Kxf8 {[%clk 0:01:46.6]} 26. Ba3+ {[%clk
0:00:33.3]} 26... Kg8 {[%clk 0:01:45]} 27. Kf1 {[%clk 0:00:34.9]} 27... Nf5
{[%clk 0:01:25]} 28. Kg1 {[%clk 0:00:33.3]} 28... Qc4 {[%clk 0:01:25.7]} 29. a5
{[%clk 0:00:26.2]} 29... Nxd4 {[%clk 0:00:48.9]} 30. g3 {[%clk 0:00:19.9]} 30...
Ne2+ {[%clk 0:00:48.9]} 31. Kg2 {[%clk 0:00:21]} 31... Qe4+ {[%clk 0:00:50]} 32.
Kh2 {[%clk 0:00:19.8]} 32... Nf4 {[%clk 0:00:48.4]} 0-1

[Event "*** Titled Tuesday Blitz"]
[Site "Chess.com"]
[Date "2018.09.04"]
[Round "3"]
[White "tony15051987"]
[Black "JonahWillow"]
[Result "0-1"]
[WhiteElo "2450"]
[BlackElo "2746"]
[TimeControl "180+2"]
[EndTime "14:11:31 PDT"]
[Termination "JonahWillow won on time"]

1. d4 {[%clk 0:02:56.3]} 1... Nf6 {[%clk 0:03:00.9]} 2. c4 {[%clk 0:02:55]} 2...
e6 {[%clk 0:03:02.2]} 3. Nc3 {[%clk 0:02:53.6]} 3... c5 {[%clk 0:03:03.5]} 4. d5
{[%clk 0:02:54]} 4... exd5 {[%clk 0:03:05.4]} 5. cxd5 {[%clk 0:02:55.2]} 5... d6
{[%clk 0:03:07]} 6. e4 {[%clk 0:02:56.3]} 6... g6 {[%clk 0:03:07.8]} 7. f4
{[%clk 0:02:57.3]} 7... Bg7 {[%clk 0:03:07.8]} 8. Bb5+ {[%clk 0:02:58.1]} 8...
Nfd7 {[%clk 0:03:08.5]} 9. Bd3 {[%clk 0:02:58.1]} 9... Qh4+ {[%clk 0:03:07.7]}
10. g3 {[%clk 0:02:58.5]} 10... Qe7 {[%clk 0:03:09.3]} 11. Nf3 {[%clk
0:02:58.2]} 11... O-O {[%clk 0:03:10.6]} 12. O-O {[%clk 0:02:58.9]} 12... Nb6
{[%clk 0:03:12.3]} 13. f5 {[%clk 0:02:29.2]} 13... N8d7 {[%clk 0:03:09.4]} 14.
Bg5 {[%clk 0:02:23.7]} 14... Bf6 {[%clk 0:03:10.2]} 15. Qd2 {[%clk 0:01:44.2]}
15... Bxg5 {[%clk 0:03:10]} 16. Nxg5 {[%clk 0:01:42.7]} 16... Ne5 {[%clk
0:03:11.1]} 17. f6 {[%clk 0:01:36.9]} 17... Qd8 {[%clk 0:03:09.8]} 18. Be2
{[%clk 0:01:32.2]} 18... Nbd7 {[%clk 0:03:09.5]} 19. Qf4 {[%clk 0:01:31.1]}
19... h6 {[%clk 0:03:10.7]} 20. Nf3 {[%clk 0:01:07.5]} 20... Nxf3+ {[%clk
0:03:10.9]} 21. Rxf3 {[%clk 0:01:07.9]} 21... Ne5 {[%clk 0:03:12]} 22. Rf2
{[%clk 0:01:00.7]} 22... Kh7 {[%clk 0:03:12.7]} 23. h4 {[%clk 0:00:51.9]} 23...
h5 {[%clk 0:02:22.1]} 24. Nd1 {[%clk 0:00:39.8]} 24... Bg4 {[%clk 0:02:18.3]}
25. Ne3 {[%clk 0:00:38]} 25... Bxe2 {[%clk 0:02:16.2]} 26. Rxe2 {[%clk
0:00:38.7]} 26... Qd7 {[%clk 0:02:15.7]} 27. Kg2 {[%clk 0:00:31.2]} 27... Rae8
{[%clk 0:02:06.6]} 28. Nf5 {[%clk 0:00:25]} 28... Ng4 {[%clk 0:02:05.9]} 29.
Nxd6 {[%clk 0:00:24.5]} 29... Re5 {[%clk 0:02:03.2]} 30. Nc4 {[%clk 0:00:21.4]}
30... Ree8 {[%clk 0:02:04.5]} 31. Rd1 {[%clk 0:00:19.2]} 31... b5 {[%clk
0:02:01.8]} 32. Ne3 {[%clk 0:00:19.5]} 32... Ne5 {[%clk 0:01:59.8]} 33. Nf5
{[%clk 0:00:19.5]} 33... Ng4 {[%clk 0:01:59.3]} 34. Nd6 {[%clk 0:00:19.8]} 34...
Qd8 {[%clk 0:01:57.7]} 35. Nxb5 {[%clk 0:00:19]} 35... Qb6 {[%clk 0:01:56.9]}
36. Nc3 {[%clk 0:00:19.8]} 36... Re5 {[%clk 0:01:56.2]} 37. d6 {[%clk
0:00:20.3]} 37... Rd8 {[%clk 0:01:56.1]} 38. Red2 {[%clk 0:00:21.2]} 38... Re6
{[%clk 0:01:55.6]} 39. d7 {[%clk 0:00:21.4]} 39... Rxf6 {[%clk 0:01:55.5]} 40.
Qg5 {[%clk 0:00:22.1]} 40... Rxd7 {[%clk 0:01:47.6]} 41. Rxd7 {[%clk 0:00:20.8]}
41... Qxb2+ {[%clk 0:01:48.8]} 42. R1d2 {[%clk 0:00:15.6]} 42... Qxc3 {[%clk
0:01:48]} 43. R7d3 {[%clk 0:00:06.6]} 43... Qc4 {[%clk 0:01:44.6]} 44. Qxc5
{[%clk 0:00:03.2]} 44... Qxc5 {[%clk 0:01:41.3]} 0-1

[Event "*** Titled Tuesday Blitz"]
[Site "Chess.com"]
[Date "2018.09.04"]
[Round "3"]
[White "Alopekos"]
[Black "wadsy27"]
[Result "1-0"]
[WhiteElo "2427"]
[BlackElo "2314"]
[TimeControl "180+2"]
[EndTime "14:11:35 PDT"]
[Termination "Alopekos won by checkmate"]

1. e4 {[%clk 0:03:01.9]} 1... c5 {[%clk 0:03:00.6]} 2. Nf3 {[%clk 0:03:02.7]}
2... e6 {[%clk 0:03:01.5]} 3. d4 {[%clk 0:03:04]} 3... cxd4 {[%clk 0:03:02.3]}
4. Nxd4 {[%clk 0:03:05.9]} 4... Nc6 {[%clk 0:03:03.7]} 5. Nc3 {[%clk 0:03:07.3]}
5... Qc7 {[%clk 0:03:05.2]} 6. Be3 {[%clk 0:03:08.3]} 6... a6 {[%clk 0:03:05.5]}
7. Be2 {[%clk 0:03:04.4]} 7... Nf6 {[%clk 0:03:05.1]} 8. O-O {[%clk 0:03:05.9]}
8... Bb4 {[%clk 0:03:06.3]} 9. Na4 {[%clk 0:03:07.3]} 9... Be7 {[%clk
0:03:07.4]} 10. Nxc6 {[%clk 0:03:04.3]} 10... bxc6 {[%clk 0:03:09.3]} 11. Nb6
{[%clk 0:03:05.8]} 11... Rb8 {[%clk 0:03:10.8]} 12. Nxc8 {[%clk 0:03:07.2]}
12... Qxc8 {[%clk 0:03:12.5]} 13. e5 {[%clk 0:03:08.8]} 13... Nd5 {[%clk
0:03:13]} 14. Bc1 {[%clk 0:03:10.3]} 14... c5 {[%clk 0:02:52.2]} 15. c4 {[%clk
0:03:11.1]} 15... Nb4 {[%clk 0:02:53.3]} 16. b3 {[%clk 0:03:03.2]} 16... Nc6
{[%clk 0:02:52.9]} 17. Bb2 {[%clk 0:03:03.9]} 17... Qc7 {[%clk 0:02:54.4]} 18.
Kh1 {[%clk 0:02:39]} 18... Nxe5 {[%clk 0:02:52.4]} 19. f4 {[%clk 0:02:39.7]}
19... Ng6 {[%clk 0:02:39]} 20. f5 {[%clk 0:02:29.9]} 20... Ne5 {[%clk
0:02:36.9]} 21. Bh5 {[%clk 0:02:16.2]} 21... g6 {[%clk 0:02:28.6]} 22. Qe2
{[%clk 0:02:04.6]} 22... d6 {[%clk 0:02:18.3]} 23. fxe6 {[%clk 0:01:33.3]} 23...
f5 {[%clk 0:01:36]} 24. Rxf5 {[%clk 0:01:26.7]} 24... gxh5 {[%clk 0:01:32.2]}
25. Bxe5 {[%clk 0:00:23]} 25... dxe5 {[%clk 0:01:30.7]} 26. Rd1 {[%clk
0:00:23.6]} 26... Bd6 {[%clk 0:00:58.4]} 27. Qxh5+ {[%clk 0:00:22.1]} 27... Kd8
{[%clk 0:00:59.9]} 28. Rf7 {[%clk 0:00:23.1]} 28... Kc8 {[%clk 0:00:18.2]} 29.
Rxc7+ {[%clk 0:00:19]} 29... Kxc7 {[%clk 0:00:20.1]} 30. Qf7+ {[%clk 0:00:19.5]}
30... Kc8 {[%clk 0:00:22]} 31. Qd7# {[%clk 0:00:19.8]} 1-0

[Event "*** Titled Tuesday Blitz"]
[Site "Chess.com"]
[Date "2018.09.04"]
[Round "3"]
[White "Yurovskykh_Oleksandr"]
[Black "Gr3egor"]
[Result "1-0"]
[WhiteElo "2449"]
[BlackElo "2480"]
[TimeControl "180+2"]
[EndTime "14:11:40 PDT"]
[Termination "Yurovskykh_Oleksandr won by resignation"]

1. d4 {[%clk 0:03:01.9]} 1... Nf6 {[%clk 0:03:00.1]} 2. Bg5 {[%clk 0:03:00.3]}
2... d5 {[%clk 0:03:00.5]} 3. Bxf6 {[%clk 0:03:01.4]} 3... exf6 {[%clk 0:03:01]}
4. e3 {[%clk 0:03:02.5]} 4... c6 {[%clk 0:03:02.3]} 5. g3 {[%clk 0:02:53.8]}
5... Bd6 {[%clk 0:03:03.3]} 6. Bg2 {[%clk 0:02:54.7]} 6... O-O {[%clk
0:03:04.2]} 7. Ne2 {[%clk 0:02:55.9]} 7... Qb6 {[%clk 0:03:05.2]} 8. b3 {[%clk
0:02:56.6]} 8... a5 {[%clk 0:03:06.4]} 9. O-O {[%clk 0:02:55.3]} 9... a4 {[%clk
0:03:07]} 10. Nd2 {[%clk 0:02:56.5]} 10... Bf5 {[%clk 0:03:06.9]} 11. e4 {[%clk
0:01:57.9]} 11... dxe4 {[%clk 0:03:06.7]} 12. Nxe4 {[%clk 0:01:59.8]} 12... Be7
{[%clk 0:03:05.1]} 13. c3 {[%clk 0:01:43]} 13... Nd7 {[%clk 0:03:04.6]} 14. b4
{[%clk 0:01:41.5]} 14... Qb5 {[%clk 0:03:03.5]} 15. Nf4 {[%clk 0:01:35.3]} 15...
Nb6 {[%clk 0:03:03.7]} 16. Nc5 {[%clk 0:01:23.1]} 16... Nc4 {[%clk 0:03:03.3]}
17. Re1 {[%clk 0:01:20.1]} 17... Bd6 {[%clk 0:03:01.6]} 18. Bf1 {[%clk
0:01:15.9]} 18... Bxf4 {[%clk 0:02:54.1]} 19. gxf4 {[%clk 0:01:17.8]} 19... b6
{[%clk 0:02:55.4]} 20. Ne4 {[%clk 0:01:16]} 20... Bxe4 {[%clk 0:02:54.4]} 21.
Rxe4 {[%clk 0:01:17.9]} 21... Qd5 {[%clk 0:02:55.8]} 22. Bg2 {[%clk 0:01:07]}
22... Qf5 {[%clk 0:02:51.5]} 23. Qd3 {[%clk 0:00:37.1]} 23... b5 {[%clk
0:02:30]} 24. Rae1 {[%clk 0:00:37.4]} 24... Rac8 {[%clk 0:02:27.7]} 25. Qh3
{[%clk 0:00:31.9]} 25... Qxh3 {[%clk 0:02:01.7]} 26. Bxh3 {[%clk 0:00:32.7]}
26... Rcd8 {[%clk 0:02:03.2]} 27. Bg2 {[%clk 0:00:27.3]} 27... Rd6 {[%clk
0:01:58.1]} 28. Re7 {[%clk 0:00:28]} 28... Nb6 {[%clk 0:01:12.6]} 29. Rc7 {[%clk
0:00:27.9]} 29... Nd5 {[%clk 0:01:13.9]} 30. Bxd5 {[%clk 0:00:26.9]} 30... cxd5
{[%clk 0:01:15.8]} 31. Rc5 {[%clk 0:00:24.4]} 31... Rb8 {[%clk 0:01:16.3]} 32.
Rxb5 {[%clk 0:00:25.1]} 32... Ra8 {[%clk 0:01:06.9]} 33. Ra5 {[%clk 0:00:25.5]}
33... Rc8 {[%clk 0:01:08.3]} 34. Rxa4 {[%clk 0:00:25]} 34... g5 {[%clk
0:01:10.2]} 35. Ra3 {[%clk 0:00:21.2]} 35... gxf4 {[%clk 0:01:10.7]} 36. Rb3
{[%clk 0:00:22.2]} 36... Ra6 {[%clk 0:01:11.4]} 37. Ra1 {[%clk 0:00:21]} 37...
Rca8 {[%clk 0:01:11.2]} 38. b5 {[%clk 0:00:19.9]} 38... Rxa2 {[%clk 0:01:09.5]}
39. Rxa2 {[%clk 0:00:21.8]} 39... Rxa2 {[%clk 0:01:10.8]} 40. Kg2 {[%clk
0:00:23.4]} 40... Kf8 {[%clk 0:01:08.7]} 41. b6 {[%clk 0:00:24.6]} 41... Ra8
{[%clk 0:01:09.1]} 42. b7 {[%clk 0:00:26.1]} 42... Rb8 {[%clk 0:01:10.1]} 43.
Kf3 {[%clk 0:00:27.6]} 43... Ke7 {[%clk 0:01:11.6]} 44. Kxf4 {[%clk 0:00:29]}
44... Kd6 {[%clk 0:01:08]} 45. Kf5 {[%clk 0:00:29.5]} 1-0

[Event "*** Titled Tuesday Blitz"]
[Site "Chess.com"]
[Date "2018.09.04"]
[Round "3"]
[White "LuisFSiles"]
[Black "ozates"]
[Result "0-1"]
[WhiteElo "2196"]
[BlackElo "2378"]
[TimeControl "180+2"]
[EndTime "14:11:51 PDT"]
[Termination "ozates won by resignation"]

1. e4 {[%clk 0:03:01.9]} 1... d6 {[%clk 0:02:58.3]} 2. Nc3 {[%clk 0:03:01]} 2...
Nf6 {[%clk 0:03:00.2]} 3. f4 {[%clk 0:03:01]} 3... e5 {[%clk 0:03:00.6]} 4. Nf3
{[%clk 0:03:01.3]} 4... Nbd7 {[%clk 0:02:59.7]} 5. Bc4 {[%clk 0:03:02]} 5... h6
{[%clk 0:02:58.2]} 6. O-O {[%clk 0:03:01.6]} 6... exf4 {[%clk 0:02:59.4]} 7. d4
{[%clk 0:03:00.4]} 7... g5 {[%clk 0:02:59.9]} 8. e5 {[%clk 0:03:01.6]} 8... dxe5
{[%clk 0:03:00]} 9. dxe5 {[%clk 0:03:02]} 9... Bc5+ {[%clk 0:03:01.2]} 10. Kh1
{[%clk 0:03:00]} 10... Ng4 {[%clk 0:03:02.5]} 11. Ne4 {[%clk 0:02:54.3]} 11...
Be3 {[%clk 0:02:59.7]} 12. Qd5 {[%clk 0:01:42.3]} 12... Qe7 {[%clk 0:02:48.9]}
13. h3 {[%clk 0:01:27.4]} 13... Nb6 {[%clk 0:02:23.7]} 14. Qxf7+ {[%clk
0:00:57.5]} 14... Qxf7 {[%clk 0:02:18.6]} 15. Bxf7+ {[%clk 0:00:59.4]} 15...
Kxf7 {[%clk 0:02:20.1]} 16. hxg4 {[%clk 0:00:59.8]} 16... Bxc1 {[%clk
0:02:21.2]} 17. Raxc1 {[%clk 0:00:58.3]} 17... Bxg4 {[%clk 0:02:22.3]} 18. Nf6
{[%clk 0:00:53.6]} 18... Be6 {[%clk 0:02:18.9]} 19. b3 {[%clk 0:00:45.9]} 19...
Rad8 {[%clk 0:02:09]} 20. Rcd1 {[%clk 0:00:46.8]} 20... Nd5 {[%clk 0:02:07.8]}
21. Nxd5 {[%clk 0:00:44.8]} 21... Rxd5 {[%clk 0:02:09.7]} 22. c4 {[%clk
0:00:43.6]} 22... Rdd8 {[%clk 0:02:03.2]} 23. Kg1 {[%clk 0:00:43.5]} 23... Bg4
{[%clk 0:01:55.1]} 24. Kf2 {[%clk 0:00:42.1]} 24... Ke6 {[%clk 0:01:50.2]} 25.
Rfe1 {[%clk 0:00:34.9]} 25... Bxf3 {[%clk 0:01:39.1]} 26. Kxf3 {[%clk 0:00:35]}
26... h5 {[%clk 0:01:37.2]} 27. Ke4 {[%clk 0:00:31.7]} 27... h4 {[%clk 0:01:35]}
28. b4 {[%clk 0:00:22]} 28... Rxd1 {[%clk 0:01:33.5]} 29. Rxd1 {[%clk
0:00:22.7]} 29... h3 {[%clk 0:01:34.1]} 30. gxh3 {[%clk 0:00:22.6]} 30... Rxh3
{[%clk 0:01:36]} 31. Rd8 {[%clk 0:00:20.8]} 31... Re3+ {[%clk 0:01:36.1]} 32.
Kd4 {[%clk 0:00:22.1]} 32... Re1 {[%clk 0:01:36.4]} 33. Re8+ {[%clk 0:00:21.3]}
33... Kf5 {[%clk 0:01:37.2]} 34. Rf8+ {[%clk 0:00:21.5]} 34... Kg4 {[%clk
0:01:37.8]} 35. Rf7 {[%clk 0:00:22.3]} 35... f3 {[%clk 0:01:37]} 36. c5 {[%clk
0:00:21.1]} 36... f2 {[%clk 0:01:37.9]} 37. Rxf2 {[%clk 0:00:21.3]} 37... Kg3
{[%clk 0:01:36.7]} 38. Rd2 {[%clk 0:00:21.3]} 38... g4 {[%clk 0:01:36.2]} 39.
Kd5 {[%clk 0:00:21.9]} 39... Kf4 {[%clk 0:01:32.4]} 40. Rd4+ {[%clk 0:00:22.1]}
40... Kf5 {[%clk 0:01:33]} 41. e6 {[%clk 0:00:22.2]} 41... Re5+ {[%clk
0:01:32.2]} 42. Kc4 {[%clk 0:00:21.6]} 42... Rxe6 {[%clk 0:01:33.6]} 43. Rd7
{[%clk 0:00:22.7]} 43... g3 {[%clk 0:01:34.1]} 44. Rf7+ {[%clk 0:00:21.5]} 44...
Rf6 {[%clk 0:01:34.7]} 45. Rg7 {[%clk 0:00:21.8]} 45... Rg6 {[%clk 0:01:35.9]}
46. Rf7+ {[%clk 0:00:23.1]} 46... Ke4 {[%clk 0:01:37]} 47. Rf1 {[%clk
0:00:24.5]} 47... g2 {[%clk 0:01:38]} 48. Rg1 {[%clk 0:00:25.2]} 48... Ke3
{[%clk 0:01:39.5]} 49. b5 {[%clk 0:00:23.3]} 49... Kf2 {[%clk 0:01:40.7]} 50.
Rxg2+ {[%clk 0:00:23.2]} 50... Kxg2 {[%clk 0:01:42.6]} 0-1

[Event "*** Titled Tuesday Blitz"]
[Site "Chess.com"]
[Date "2018.09.04"]
[Round "3"]
[White "ecwinslow"]
[Black "arna"]
[Result "1/2-1/2"]
[WhiteElo "2011"]
[BlackElo "2076"]
[TimeControl "180+2"]
[EndTime "14:11:52 PDT"]
[Termination "Game drawn by agreement"]

1. d4 {[%clk 0:03:01.9]} 1... Nf6 {[%clk 0:02:51.6]} 2. c4 {[%clk 0:03:01.6]}
2... e6 {[%clk 0:02:51.1]} 3. Nf3 {[%clk 0:03:00.6]} 3... c5 {[%clk 0:02:45.4]}
4. d5 {[%clk 0:03:00.2]} 4... b5 {[%clk 0:02:45.9]} 5. Bg5 {[%clk 0:02:58.5]}
5... h6 {[%clk 0:02:43.1]} 6. Bxf6 {[%clk 0:02:52.8]} 6... Qxf6 {[%clk
0:02:43.3]} 7. Qc2 {[%clk 0:02:38.7]} 7... exd5 {[%clk 0:02:22.3]} 8. Nc3 {[%clk
0:02:28.8]} 8... Bb7 {[%clk 0:01:29.1]} 9. Nxb5 {[%clk 0:02:16.3]} 9... Qb6
{[%clk 0:01:28]} 10. e3 {[%clk 0:02:04.9]} 10... dxc4 {[%clk 0:01:17.8]} 11.
Bxc4 {[%clk 0:02:02.4]} 11... d5 {[%clk 0:01:18]} 12. Be2 {[%clk 0:02:01.9]}
12... Nd7 {[%clk 0:01:08.3]} 13. O-O {[%clk 0:01:56.5]} 13... Be7 {[%clk
0:01:03.1]} 14. Rfd1 {[%clk 0:01:54.3]} 14... a6 {[%clk 0:00:45.1]} 15. Nc3
{[%clk 0:01:50.7]} 15... Nf6 {[%clk 0:00:45.8]} 16. Rac1 {[%clk 0:01:42.2]}
16... Rc8 {[%clk 0:00:39.3]} 17. Qa4+ {[%clk 0:01:08.3]} 17... Qc6 {[%clk
0:00:37.7]} 18. Qxc6+ {[%clk 0:01:06.6]} 18... Bxc6 {[%clk 0:00:12]} 19. Bxa6
{[%clk 0:01:04.9]} 19... Rb8 {[%clk 0:00:12.5]} 20. a4 {[%clk 0:01:01.6]} 20...
Rxb2 {[%clk 0:00:07.4]} 21. Bb5 {[%clk 0:01:01.1]} 21... Bxb5 {[%clk 0:00:06.5]}
22. axb5 {[%clk 0:00:56.4]} 22... O-O {[%clk 0:00:07.1]} 23. Nxd5 {[%clk
0:00:49.1]} 23... Nxd5 {[%clk 0:00:07.4]} 24. Rxd5 {[%clk 0:00:48.8]} 24... Rxb5
{[%clk 0:00:09]} 25. Nd4 {[%clk 0:00:45.3]} 25... Rb7 {[%clk 0:00:04.5]} 26. Nf5
{[%clk 0:00:43.7]} 26... Re8 {[%clk 0:00:04.5]} 27. Nxe7+ {[%clk 0:00:42.7]}
27... Rexe7 {[%clk 0:00:06]} 28. Rdxc5 {[%clk 0:00:44]} 28... g6 {[%clk
0:00:07.4]} 29. h4 {[%clk 0:00:41.9]} 29... h5 {[%clk 0:00:08.2]} 30. g3 {[%clk
0:00:41.1]} 30... Kg7 {[%clk 0:00:09.2]} 31. Kg2 {[%clk 0:00:40.3]} 31... Rb2
{[%clk 0:00:08.9]} 32. R1c4 {[%clk 0:00:36.8]} 32... Rxe3 {[%clk 0:00:07.8]} 33.
Rf4 {[%clk 0:00:37.3]} 33... Re7 {[%clk 0:00:07.8]} 34. Rc6 {[%clk 0:00:32.1]}
34... Rbb7 {[%clk 0:00:07.7]} 35. Rcf6 {[%clk 0:00:31.8]} 35... Rbc7 {[%clk
0:00:07.2]} 1/2-1/2

[Event "*** Titled Tuesday Blitz"]
[Site "Chess.com"]
[Date "2018.09.04"]
[Round "3"]
[White "Drags95"]
[Black "Kimster98"]
[Result "1-0"]
[WhiteElo "2672"]
[BlackElo "2488"]
[TimeControl "180+2"]
[EndTime "14:12:02 PDT"]
[Termination "Drags95 won by resignation"]

1. e4 {[%clk 0:03:01.9]} 1... d6 {[%clk 0:03:01.9]} 2. d4 {[%clk 0:03:02.4]}
2... Nf6 {[%clk 0:03:03.4]} 3. Nc3 {[%clk 0:03:02.9]} 3... c6 {[%clk 0:03:04.9]}
4. Bg5 {[%clk 0:03:00.9]} 4... Nbd7 {[%clk 0:03:04]} 5. f4 {[%clk 0:02:55.9]}
5... Qa5 {[%clk 0:02:48]} 6. Qd2 {[%clk 0:02:51]} 6... e5 {[%clk 0:02:46.3]} 7.
dxe5 {[%clk 0:02:50.3]} 7... dxe5 {[%clk 0:02:46.4]} 8. fxe5 {[%clk 0:02:34.3]}
8... Nxe5 {[%clk 0:02:38.1]} 9. Nf3 {[%clk 0:02:18.2]} 9... Bb4 {[%clk
0:02:10.1]} 10. Bxf6 {[%clk 0:02:08.3]} 10... gxf6 {[%clk 0:02:08.2]} 11. Bd3
{[%clk 0:02:06.9]} 11... Bg4 {[%clk 0:01:57]} 12. Nxe5 {[%clk 0:01:54.6]} 12...
Qxe5 {[%clk 0:01:58.9]} 13. O-O {[%clk 0:01:55.1]} 13... O-O-O {[%clk
0:01:43.9]} 14. Qh6 {[%clk 0:01:50.3]} 14... Bxc3 {[%clk 0:01:40.8]} 15. bxc3
{[%clk 0:01:51]} 15... Qxc3 {[%clk 0:01:35.6]} 16. Qxf6 {[%clk 0:01:28.5]} 16...
Qxf6 {[%clk 0:01:35.2]} 17. Rxf6 {[%clk 0:01:30.4]} 17... Be6 {[%clk 0:01:36.7]}
18. a3 {[%clk 0:01:27.7]} 18... Rd4 {[%clk 0:01:33]} 19. Rh6 {[%clk 0:01:27.9]}
19... Bc4 {[%clk 0:01:22.5]} 20. Rf1 {[%clk 0:00:56]} 20... Bxd3 {[%clk
0:01:14]} 21. cxd3 {[%clk 0:00:57.9]} 21... Rxd3 {[%clk 0:01:15.9]} 22. Rxf7
{[%clk 0:00:59]} 22... Rxa3 {[%clk 0:01:17]} 23. Re6 {[%clk 0:00:58.6]} 23...
Rd8 {[%clk 0:00:47.5]} 24. h4 {[%clk 0:00:54.3]} 24... h5 {[%clk 0:00:34.6]} 25.
Ree7 {[%clk 0:00:51.9]} 25... Rb3 {[%clk 0:00:35.2]} 26. e5 {[%clk 0:00:50.8]}
26... a5 {[%clk 0:00:34.8]} 27. e6 {[%clk 0:00:52.3]} 27... a4 {[%clk
0:00:19.1]} 28. Rc7+ {[%clk 0:00:24.8]} 28... Kb8 {[%clk 0:00:20]} 29. e7 {[%clk
0:00:26.7]} 29... Re8 {[%clk 0:00:18.8]} 30. Rd7 {[%clk 0:00:27.6]} 30... a3
{[%clk 0:00:12.4]} 31. Rd8+ {[%clk 0:00:23.6]} 31... Ka7 {[%clk 0:00:13.3]} 32.
Rxe8 {[%clk 0:00:24.6]} 32... a2 {[%clk 0:00:14.3]} 33. Rf1 {[%clk 0:00:17.8]}
33... Rb1 {[%clk 0:00:14.6]} 34. Ra8+ {[%clk 0:00:18.2]} 34... Kxa8 {[%clk
0:00:16]} 35. e8=Q+ {[%clk 0:00:19.5]} 35... Ka7 {[%clk 0:00:17.9]} 36. Qe3+
{[%clk 0:00:19.4]} 36... Kb8 {[%clk 0:00:19]} 37. Qe5+ {[%clk 0:00:19.1]} 37...
Ka7 {[%clk 0:00:20.2]} 38. Qa5+ {[%clk 0:00:19.8]} 38... Kb8 {[%clk 0:00:21.6]}
39. Qxa2 {[%clk 0:00:21.1]} 1-0

[Event "*** Titled Tuesday Blitz"]
[Site "Chess.com"]
[Date "2018.09.04"]
[Round "3"]
[White "farzadbfd"]
[Black "xberli"]
[Result "1-0"]
[WhiteElo "2536"]
[BlackElo "2542"]
[TimeControl "180+2"]
[EndTime "14:12:07 PDT"]
[Termination "farzadbfd won by resignation"]

1. e4 {[%clk 0:03:01.9]} 1... c5 {[%clk 0:03:00.5]} 2. Nc3 {[%clk 0:03:02.5]}
2... d6 {[%clk 0:03:01.4]} 3. g3 {[%clk 0:03:04.1]} 3... g6 {[%clk 0:02:59.5]}
4. Bg2 {[%clk 0:03:05.5]} 4... Bg7 {[%clk 0:03:00.8]} 5. d3 {[%clk 0:03:06.9]}
5... Nc6 {[%clk 0:03:01.6]} 6. Be3 {[%clk 0:03:07.8]} 6... e6 {[%clk 0:02:59.8]}
7. Qd2 {[%clk 0:03:08.9]} 7... Rb8 {[%clk 0:02:58.1]} 8. Nge2 {[%clk 0:03:09.2]}
8... b5 {[%clk 0:02:56.4]} 9. a3 {[%clk 0:03:05]} 9... Nge7 {[%clk 0:02:45.4]}
10. O-O {[%clk 0:03:03.6]} 10... a5 {[%clk 0:02:43.4]} 11. d4 {[%clk 0:02:57.6]}
11... cxd4 {[%clk 0:02:38.3]} 12. Nxd4 {[%clk 0:02:59.5]} 12... b4 {[%clk
0:02:35.7]} 13. axb4 {[%clk 0:02:59.7]} 13... axb4 {[%clk 0:02:37.6]} 14. Ncb5
{[%clk 0:02:49.2]} 14... Nxd4 {[%clk 0:02:36.3]} 15. Nxd4 {[%clk 0:02:21.9]}
15... O-O {[%clk 0:02:35.6]} 16. Bh6 {[%clk 0:02:22.4]} 16... Qc7 {[%clk
0:02:25.5]} 17. Bxg7 {[%clk 0:02:23]} 17... Kxg7 {[%clk 0:02:27.4]} 18. Rfd1
{[%clk 0:02:22.8]} 18... Rd8 {[%clk 0:02:24.7]} 19. h4 {[%clk 0:01:24.6]} 19...
e5 {[%clk 0:02:17.9]} 20. h5 {[%clk 0:01:01.6]} 20... h6 {[%clk 0:01:55.7]} 21.
Nf3 {[%clk 0:00:26.6]} 21... Bg4 {[%clk 0:01:52.5]} 22. hxg6 {[%clk 0:00:27.2]}
22... fxg6 {[%clk 0:01:53.1]} 23. Ra6 {[%clk 0:00:24.8]} 23... Rb6 {[%clk
0:01:39.9]} 24. Rda1 {[%clk 0:00:24.8]} 24... Nc6 {[%clk 0:01:31.5]} 25. Qd5
{[%clk 0:00:19.5]} 25... Bxf3 {[%clk 0:01:22.8]} 26. Bxf3 {[%clk 0:00:21.4]}
26... Nd4 {[%clk 0:01:23.7]} 27. Bg2 {[%clk 0:00:22.5]} 27... Rf8 {[%clk
0:01:20.1]} 28. c3 {[%clk 0:00:22.6]} 28... bxc3 {[%clk 0:01:19.5]} 29. Ra7
{[%clk 0:00:22.3]} 29... Ne2+ {[%clk 0:01:13.7]} 30. Kh2 {[%clk 0:00:21.3]}
30... Rf7 {[%clk 0:01:09.7]} 31. Rxc7 {[%clk 0:00:21.8]} 31... Rxc7 {[%clk
0:01:11.6]} 32. Ra8 {[%clk 0:00:16.2]} 32... Rf7 {[%clk 0:01:09.2]} 33. bxc3
{[%clk 0:00:16.2]} 33... Nxc3 {[%clk 0:01:09.4]} 34. Qc4 {[%clk 0:00:16.6]}
34... Nb5 {[%clk 0:01:06.9]} 35. Ra5 {[%clk 0:00:16.5]} 35... Nd4 {[%clk
0:01:06.2]} 36. Ra8 {[%clk 0:00:15.7]} 36... Rb2 {[%clk 0:01:04.8]} 37. Qc8
{[%clk 0:00:16.3]} 37... Kf6 {[%clk 0:01:02.6]} 38. Qh8+ {[%clk 0:00:14.4]}
38... Kg5 {[%clk 0:01:02.6]} 39. Qd8+ {[%clk 0:00:14.9]} 39... Rf6 {[%clk
0:01:00.1]} 40. f4+ {[%clk 0:00:15.5]} 40... exf4 {[%clk 0:01:01]} 41. gxf4+
{[%clk 0:00:17.4]} 41... Kg4 {[%clk 0:01:00.2]} 42. Qxf6 {[%clk 0:00:19.3]}
42... Nf3+ {[%clk 0:01:00.6]} 43. Kh1 {[%clk 0:00:20.6]} 43... Rb1+ {[%clk
0:01:01.1]} 44. Bf1 {[%clk 0:00:22.2]} 44... Rxf1+ {[%clk 0:01:01.8]} 45. Kg2
{[%clk 0:00:23.9]} 45... Rd1 {[%clk 0:00:57.6]} 46. Qxg6+ {[%clk 0:00:24]} 46...
Kxf4 {[%clk 0:00:58.8]} 47. Qg3+ {[%clk 0:00:23.4]} 1-0